[Event "Late-Titled-Tuesday-Blitz-June-25-2024"]
[Site "Chess.com"]
[Date "2024.06.25"]
[Round "7"]
[White "MatthewG-p4p"]
[Black "HansOnTwitch"]
[Result "0-1"]
[WhiteElo "2920"]
[BlackElo "3114"]
[TimeControl "180+1"]
[EndTime "15:12:29 PDT"]
[Termination "HansOnTwitch won by resignation"]

1. e4 {[%clk 0:03:00.9]} 1... e6 {[%clk 0:02:57.1]} 2. d4 {[%clk 0:03:00.4]}
2... d5 {[%clk 0:02:57.5]} 3. e5 {[%clk 0:03:01.1]} 3... c5 {[%clk 0:02:57.6]}
4. c3 {[%clk 0:03:01.4]} 4... Nc6 {[%clk 0:02:58.3]} 5. Nf3 {[%clk 0:03:01.8]}
5... Bd7 {[%clk 0:02:58.9]} 6. Be2 {[%clk 0:03:01.9]} 6... Nge7 {[%clk
0:02:49.2]} 7. Na3 {[%clk 0:03:00.9]} 7... Ng6 {[%clk 0:02:41.7]} 8. Nc2 {[%clk
0:02:57.4]} 8... cxd4 {[%clk 0:02:40.9]} 9. cxd4 {[%clk 0:02:57.5]} 9... Be7
{[%clk 0:02:41.6]} 10. Bd3 {[%clk 0:02:42.1]} 10... Qb6 {[%clk 0:02:36.4]} 11.
h4 {[%clk 0:02:35.4]} 11... Rc8 {[%clk 0:02:30.9]} 12. h5 {[%clk 0:02:29]} 12...
Nf8 {[%clk 0:02:30.9]} 13. h6 {[%clk 0:02:23.5]} 13... g6 {[%clk 0:02:29.5]} 14.
a3 {[%clk 0:02:12.3]} 14... Na5 {[%clk 0:02:27.8]} 15. Ne3 {[%clk 0:01:41.5]}
15... Nb3 {[%clk 0:02:25.5]} 16. Rb1 {[%clk 0:01:42]} 16... Nxd4 {[%clk
0:02:14.8]} 17. b4 {[%clk 0:01:32]} 17... Nxf3+ {[%clk 0:02:06.2]} 18. Qxf3
{[%clk 0:01:32.9]} 18... Qd4 {[%clk 0:02:06]} 19. Bb2 {[%clk 0:01:30.6]} 19...
Qxd3 {[%clk 0:02:04.5]} 0-1

[Event "Late-Titled-Tuesday-Blitz-June-25-2024"]
[Site "Chess.com"]
[Date "2024.06.25"]
[Round "7"]
[White "Sanan_Sjugirov"]
[Black "bubeliang"]
[Result "1-0"]
[WhiteElo "3003"]
[BlackElo "2786"]
[TimeControl "180+1"]
[EndTime "15:13:13 PDT"]
[Termination "Sanan_Sjugirov won by checkmate"]

1. e4 {[%clk 0:03:00.9]} 1... c6 {[%clk 0:02:59.5]} 2. d4 {[%clk 0:03:01]} 2...
d5 {[%clk 0:03:00.4]} 3. e5 {[%clk 0:03:01.6]} 3... c5 {[%clk 0:03:00.1]} 4.
dxc5 {[%clk 0:03:01.1]} 4... e6 {[%clk 0:03:00.5]} 5. c3 {[%clk 0:03:01.7]} 5...
Bxc5 {[%clk 0:02:58.9]} 6. Qg4 {[%clk 0:03:01.5]} 6... Ne7 {[%clk 0:02:58.4]} 7.
Nf3 {[%clk 0:03:00.3]} 7... Ng6 {[%clk 0:02:53.5]} 8. h4 {[%clk 0:02:58.5]} 8...
Qc7 {[%clk 0:02:43.3]} 9. h5 {[%clk 0:02:49]} 9... Nxe5 {[%clk 0:02:40.3]} 10.
Qxg7 {[%clk 0:02:48.8]} 10... Nxf3+ {[%clk 0:02:40.6]} 11. gxf3 {[%clk
0:02:49.7]} 11... Rf8 {[%clk 0:02:40.5]} 12. Nd2 {[%clk 0:02:33.9]} 12... Nc6
{[%clk 0:02:38.9]} 13. Nb3 {[%clk 0:02:34.2]} 13... Bd6 {[%clk 0:02:37.6]} 14.
Qxh7 {[%clk 0:02:31.7]} 14... Be5 {[%clk 0:02:25.3]} 15. Rg1 {[%clk 0:02:26.8]}
15... Bd7 {[%clk 0:02:22.5]} 16. Bh6 {[%clk 0:02:26.1]} 16... Rh8 {[%clk
0:01:51.9]} 17. Rg8+ {[%clk 0:02:25.1]} 17... Ke7 {[%clk 0:01:51.8]} 18. Bg5+
{[%clk 0:02:23.9]} 18... Kd6 {[%clk 0:01:48.8]} 19. Rxh8 {[%clk 0:02:17.5]}
19... Rxh8 {[%clk 0:01:49.7]} 20. Qxf7 {[%clk 0:02:17.8]} 20... Nd8 {[%clk
0:00:40.4]} 21. Qe7+ {[%clk 0:02:13.8]} 21... Kc6 {[%clk 0:00:39.2]} 22. Qc5#
{[%clk 0:02:14.7]} 1-0

[Event "Late-Titled-Tuesday-Blitz-June-25-2024"]
[Site "Chess.com"]
[Date "2024.06.25"]
[Round "7"]
[White "jcibarra"]
[Black "Frankie_Badacsonyi"]
[Result "1-0"]
[WhiteElo "2908"]
[BlackElo "2501"]
[TimeControl "180+1"]
[EndTime "15:13:23 PDT"]
[Termination "jcibarra won by resignation"]

1. d4 {[%clk 0:03:00.9]} 1... d5 {[%clk 0:02:57.6]} 2. Bf4 {[%clk 0:03:01.3]}
2... Nf6 {[%clk 0:02:56.8]} 3. e3 {[%clk 0:03:01.6]} 3... e6 {[%clk 0:02:56.9]}
4. Nd2 {[%clk 0:02:59.4]} 4... c5 {[%clk 0:02:54.3]} 5. c3 {[%clk 0:02:57.6]}
5... Nc6 {[%clk 0:02:54.3]} 6. Ngf3 {[%clk 0:02:55.8]} 6... Bd6 {[%clk
0:02:42.6]} 7. Bg3 {[%clk 0:02:44]} 7... O-O {[%clk 0:02:40.6]} 8. Bb5 {[%clk
0:02:43.2]} 8... Qc7 {[%clk 0:02:36.2]} 9. dxc5 {[%clk 0:02:40.3]} 9... Bxg3
{[%clk 0:02:31.9]} 10. hxg3 {[%clk 0:02:39.5]} 10... e5 {[%clk 0:02:06.1]} 11.
Qa4 {[%clk 0:02:28.2]} 11... Bd7 {[%clk 0:02:05.2]} 12. Qh4 {[%clk 0:02:20.7]}
12... e4 {[%clk 0:01:55.5]} 13. Bxc6 {[%clk 0:02:05.5]} 13... Bxc6 {[%clk
0:01:40.4]} 14. Nd4 {[%clk 0:02:02.7]} 14... a5 {[%clk 0:01:35.2]} 15. Nf5
{[%clk 0:01:50.8]} 15... Bd7 {[%clk 0:00:59.7]} 16. Ne7+ {[%clk 0:01:38.9]} 1-0

[Event "Late-Titled-Tuesday-Blitz-June-25-2024"]
[Site "Chess.com"]
[Date "2024.06.25"]
[Round "7"]
[White "LikeWater"]
[Black "medinapazmiguel1968"]
[Result "1-0"]
[WhiteElo "2690"]
[BlackElo "2460"]
[TimeControl "180+1"]
[EndTime "15:13:30 PDT"]
[Termination "LikeWater won by resignation"]

1. e4 {[%clk 0:03:00.9]} 1... c5 {[%clk 0:02:59.7]} 2. c3 {[%clk 0:03:00.7]}
2... Nf6 {[%clk 0:02:59.1]} 3. e5 {[%clk 0:03:00.9]} 3... Nd5 {[%clk 0:02:59.7]}
4. Nf3 {[%clk 0:03:01.6]} 4... Nc6 {[%clk 0:02:59.5]} 5. Bc4 {[%clk 0:03:01.9]}
5... Nb6 {[%clk 0:02:59]} 6. Bb3 {[%clk 0:03:02.5]} 6... d6 {[%clk 0:02:58.7]}
7. exd6 {[%clk 0:03:03.4]} 7... e6 {[%clk 0:02:58.4]} 8. d4 {[%clk 0:03:03.3]}
8... cxd4 {[%clk 0:02:58.1]} 9. cxd4 {[%clk 0:03:04.2]} 9... Bxd6 {[%clk
0:02:58.3]} 10. O-O {[%clk 0:03:04.8]} 10... O-O {[%clk 0:02:58.7]} 11. Nc3
{[%clk 0:03:05.7]} 11... Nd5 {[%clk 0:02:50.2]} 12. h3 {[%clk 0:02:58.4]} 12...
Nf6 {[%clk 0:02:46]} 13. Bg5 {[%clk 0:02:55.5]} 13... h6 {[%clk 0:02:45.6]} 14.
Be3 {[%clk 0:02:51.1]} 14... Na5 {[%clk 0:02:40.7]} 15. Bc2 {[%clk 0:02:44.2]}
15... Bd7 {[%clk 0:02:28.9]} 16. Qd3 {[%clk 0:02:37.1]} 16... Rc8 {[%clk
0:02:06.3]} 17. Ne5 {[%clk 0:02:37]} 17... Nc6 {[%clk 0:02:04.7]} 18. Ng4 {[%clk
0:02:16.9]} 18... g6 {[%clk 0:01:45]} 19. Nxh6+ {[%clk 0:02:10.3]} 19... Kg7
{[%clk 0:01:41.7]} 20. Nxf7 {[%clk 0:02:04.1]} 20... Kxf7 {[%clk 0:01:28.9]} 21.
Qxg6+ {[%clk 0:02:00.9]} 21... Ke7 {[%clk 0:01:29.4]} 22. Bg5 {[%clk 0:01:55]}
22... Nxd4 {[%clk 0:00:52]} 23. Qg7+ {[%clk 0:01:50.9]} 23... Ke8 {[%clk
0:00:47.2]} 24. Bg6+ {[%clk 0:01:50.4]} 1-0

[Event "Late-Titled-Tuesday-Blitz-June-25-2024"]
[Site "Chess.com"]
[Date "2024.06.25"]
[Round "7"]
[White "Pachonpower"]
[Black "karinachess1"]
[Result "1/2-1/2"]
[WhiteElo "2477"]
[BlackElo "2688"]
[TimeControl "180+1"]
[EndTime "15:14:04 PDT"]
[Termination "Game drawn by agreement"]

1. d4 {[%clk 0:03:00.9]} 1... Nf6 {[%clk 0:02:59.5]} 2. Nf3 {[%clk 0:03:01.2]}
2... e6 {[%clk 0:02:59.6]} 3. Nbd2 {[%clk 0:03:01.2]} 3... d5 {[%clk 0:02:58.1]}
4. e3 {[%clk 0:03:01.6]} 4... Be7 {[%clk 0:02:57.4]} 5. Bd3 {[%clk 0:03:01.8]}
5... O-O {[%clk 0:02:54.1]} 6. O-O {[%clk 0:03:01.7]} 6... b6 {[%clk 0:02:54.5]}
7. Qe2 {[%clk 0:03:01.5]} 7... a5 {[%clk 0:02:54.2]} 8. b3 {[%clk 0:02:59.3]}
8... Ba6 {[%clk 0:02:52]} 9. c4 {[%clk 0:02:59.5]} 9... c5 {[%clk 0:02:49.1]}
10. Bb2 {[%clk 0:02:59.5]} 10... Nc6 {[%clk 0:02:49.1]} 11. Ne5 {[%clk
0:02:59.4]} 11... Nb4 {[%clk 0:02:41]} 12. Bb1 {[%clk 0:02:57.8]} 12... dxc4
{[%clk 0:02:34.7]} 13. bxc4 {[%clk 0:02:58.1]} 13... cxd4 {[%clk 0:02:29.8]} 14.
exd4 {[%clk 0:02:58.4]} 14... Rc8 {[%clk 0:02:30.2]} 15. a3 {[%clk 0:02:58.6]}
15... Nc6 {[%clk 0:02:21]} 16. Nxc6 {[%clk 0:02:43]} 16... Rxc6 {[%clk
0:02:20.1]} 17. Rc1 {[%clk 0:02:43.2]} 17... Qc8 {[%clk 0:02:05.7]} 18. Bd3
{[%clk 0:02:41.3]} 18... Re8 {[%clk 0:01:57.7]} 19. Ne4 {[%clk 0:02:40.7]} 19...
Nxe4 {[%clk 0:01:47.9]} 20. Qxe4 {[%clk 0:02:39.6]} 20... f5 {[%clk 0:01:47.7]}
21. Qe2 {[%clk 0:02:39.6]} 21... Bf6 {[%clk 0:01:47.5]} 22. Rc2 {[%clk
0:02:16.9]} 22... Rd6 {[%clk 0:01:47.5]} 23. c5 {[%clk 0:02:01.5]} 23... Bxd3
{[%clk 0:01:45.6]} 24. Qxd3 {[%clk 0:01:59.4]} 24... bxc5 {[%clk 0:01:45.4]} 25.
Rac1 {[%clk 0:01:56]} 25... Qd8 {[%clk 0:01:34.2]} 26. Rxc5 {[%clk 0:01:54]}
26... Bxd4 {[%clk 0:01:32.6]} 27. Bxd4 {[%clk 0:01:54]} 27... Rxd4 {[%clk
0:01:33.5]} 28. Qe2 {[%clk 0:01:53.7]} 28... Rd2 {[%clk 0:01:30.7]} 29. Qh5
{[%clk 0:01:53]} 29... g6 {[%clk 0:01:28.2]} 30. Qf3 {[%clk 0:01:51.4]} 30...
Qd3 {[%clk 0:01:21.6]} 31. Qxd3 {[%clk 0:01:45.9]} 31... Rxd3 {[%clk 0:01:22.5]}
32. Rxa5 {[%clk 0:01:46.5]} 32... Red8 {[%clk 0:01:07]} 33. g3 {[%clk
0:01:46.1]} 33... Rd1+ {[%clk 0:01:06.3]} 34. Rxd1 {[%clk 0:01:46.4]} 34...
Rxd1+ {[%clk 0:01:07.1]} 35. Kg2 {[%clk 0:01:47.3]} 1/2-1/2

[Event "Late-Titled-Tuesday-Blitz-June-25-2024"]
[Site "Chess.com"]
[Date "2024.06.25"]
[Round "7"]
[White "HaryKane"]
[Black "CFalcons8"]
[Result "0-1"]
[WhiteElo "2591"]
[BlackElo "2450"]
[TimeControl "180+1"]
[EndTime "15:14:31 PDT"]
[Termination "CFalcons8 won by checkmate"]

1. e4 {[%clk 0:03:00.9]} 1... c5 {[%clk 0:02:53.4]} 2. Nf3 {[%clk 0:03:00.2]}
2... d6 {[%clk 0:02:53.5]} 3. d4 {[%clk 0:03:00.3]} 3... cxd4 {[%clk 0:02:54.4]}
4. Nxd4 {[%clk 0:03:00.8]} 4... Nf6 {[%clk 0:02:53.3]} 5. Nc3 {[%clk 0:03:01.3]}
5... a6 {[%clk 0:02:51.9]} 6. Bc4 {[%clk 0:03:00.4]} 6... e6 {[%clk 0:02:52.1]}
7. Bb3 {[%clk 0:03:00.4]} 7... Qc7 {[%clk 0:02:49.2]} 8. Be3 {[%clk 0:02:58.7]}
8... Be7 {[%clk 0:02:44]} 9. f3 {[%clk 0:02:58.4]} 9... O-O {[%clk 0:02:43.4]}
10. Qd2 {[%clk 0:02:57.9]} 10... Nc6 {[%clk 0:02:43.1]} 11. g4 {[%clk 0:02:58]}
11... b5 {[%clk 0:02:35.4]} 12. g5 {[%clk 0:02:57.4]} 12... Nh5 {[%clk
0:02:33.3]} 13. Nce2 {[%clk 0:02:54.8]} 13... Ne5 {[%clk 0:02:23.3]} 14. Ng3
{[%clk 0:02:53]} 14... Nxg3 {[%clk 0:02:13.7]} 15. hxg3 {[%clk 0:02:53.9]} 15...
Nc4 {[%clk 0:01:51.6]} 16. Bxc4 {[%clk 0:02:45.8]} 16... bxc4 {[%clk 0:01:52.5]}
17. O-O-O {[%clk 0:02:30.5]} 17... c3 {[%clk 0:01:44.2]} 18. bxc3 {[%clk
0:02:24.2]} 18... d5 {[%clk 0:01:31.1]} 19. Rxh7 {[%clk 0:02:23.5]} 19... Ba3+
{[%clk 0:01:17.3]} 20. Kb1 {[%clk 0:02:21.6]} 20... Rb8+ {[%clk 0:00:28.5]} 21.
Nb3 {[%clk 0:02:20.1]} 21... Rd8 {[%clk 0:00:18.8]} 22. Qh2 {[%clk 0:02:03.7]}
22... Kf8 {[%clk 0:00:12.7]} 23. Rxg7 {[%clk 0:02:00.4]} 23... Kxg7 {[%clk
0:00:02.8]} 24. Qh6+ {[%clk 0:01:58.4]} 24... Kg8 {[%clk 0:00:03]} 25. Rh1
{[%clk 0:01:58.5]} 25... Qxc3 {[%clk 0:00:01.8]} 26. Bd4 {[%clk 0:01:53.5]}
26... Qxd4 {[%clk 0:00:01.7]} 27. Qh7+ {[%clk 0:01:49.1]} 27... Kf8 {[%clk
0:00:01.4]} 28. Qh8+ {[%clk 0:01:49.8]} 28... Qxh8 {[%clk 0:00:02]} 29. Rxh8+
{[%clk 0:01:50.1]} 29... Ke7 {[%clk 0:00:02.9]} 30. Rh7 {[%clk 0:01:50.8]} 30...
dxe4 {[%clk 0:00:02.8]} 31. g6 {[%clk 0:01:51.5]} 31... Rd1# {[%clk 0:00:02.1]}
0-1

[Event "Late-Titled-Tuesday-Blitz-June-25-2024"]
[Site "Chess.com"]
[Date "2024.06.25"]
[Round "7"]
[White "jaramsdal"]
[Black "manitodeplomo"]
[Result "0-1"]
[WhiteElo "2431"]
[BlackElo "2598"]
[TimeControl "180+1"]
[EndTime "15:14:34 PDT"]
[Termination "manitodeplomo won by checkmate"]

1. e4 {[%clk 0:02:59]} 1... e6 {[%clk 0:02:58.1]} 2. d4 {[%clk 0:02:58.3]} 2...
d5 {[%clk 0:02:58.2]} 3. Nc3 {[%clk 0:02:54.2]} 3... Bb4 {[%clk 0:02:57.4]} 4.
Ne2 {[%clk 0:02:54]} 4... Nc6 {[%clk 0:02:56.7]} 5. a3 {[%clk 0:02:45.1]} 5...
Ba5 {[%clk 0:02:56.7]} 6. b4 {[%clk 0:02:39]} 6... Bb6 {[%clk 0:02:56.2]} 7. e5
{[%clk 0:02:34.8]} 7... f6 {[%clk 0:02:56.4]} 8. f4 {[%clk 0:02:33.7]} 8... Nh6
{[%clk 0:02:51]} 9. Be3 {[%clk 0:02:24.4]} 9... O-O {[%clk 0:02:32.9]} 10. Qd2
{[%clk 0:02:00.8]} 10... Nf5 {[%clk 0:02:14.3]} 11. Bf2 {[%clk 0:01:57]} 11...
fxe5 {[%clk 0:02:13.4]} 12. fxe5 {[%clk 0:01:57.2]} 12... Bd7 {[%clk 0:01:50]}
13. Na4 {[%clk 0:01:24.8]} 13... Bxd4 {[%clk 0:01:30.2]} 14. Bxd4 {[%clk
0:01:18]} 14... Nfxd4 {[%clk 0:01:01.8]} 15. Nxd4 {[%clk 0:01:16.2]} 15... Qh4+
{[%clk 0:00:48.8]} 16. g3 {[%clk 0:01:01.9]} 16... Qe4+ {[%clk 0:00:36.6]} 17.
Ne2 {[%clk 0:01:00.6]} 17... Qxh1 {[%clk 0:00:27.4]} 18. Nc5 {[%clk 0:01:00.7]}
18... Rxf1# {[%clk 0:00:24.1]} 0-1

[Event "Late-Titled-Tuesday-Blitz-June-25-2024"]
[Site "Chess.com"]
[Date "2024.06.25"]
[Round "7"]
[White "s-dshubin"]
[Black "Piriflillo"]
[Result "0-1"]
[WhiteElo "2326"]
[BlackElo "2529"]
[TimeControl "180+1"]
[EndTime "15:14:35 PDT"]
[Termination "Piriflillo won by resignation"]

1. e4 {[%clk 0:03:00.9]} 1... d5 {[%clk 0:03:00.6]} 2. exd5 {[%clk 0:03:01]}
2... Qxd5 {[%clk 0:03:01]} 3. Nc3 {[%clk 0:03:01.9]} 3... Qa5 {[%clk 0:03:01.3]}
4. d4 {[%clk 0:03:01.8]} 4... Nf6 {[%clk 0:03:01.5]} 5. Bd2 {[%clk 0:03:01.3]}
5... c6 {[%clk 0:03:01.4]} 6. Bc4 {[%clk 0:03:00.3]} 6... Bg4 {[%clk 0:02:59.5]}
7. f3 {[%clk 0:02:58.2]} 7... Bd7 {[%clk 0:02:58.5]} 8. Nge2 {[%clk 0:02:57.8]}
8... e6 {[%clk 0:02:54.5]} 9. Ne4 {[%clk 0:02:52.2]} 9... Qd8 {[%clk 0:02:52.5]}
10. O-O {[%clk 0:02:47.4]} 10... Be7 {[%clk 0:02:51.9]} 11. N2g3 {[%clk
0:02:42]} 11... Bc8 {[%clk 0:02:39.5]} 12. c3 {[%clk 0:02:41.1]} 12... Nbd7
{[%clk 0:02:37.6]} 13. Bf4 {[%clk 0:02:38.3]} 13... O-O {[%clk 0:02:31.8]} 14.
Bb3 {[%clk 0:02:37.6]} 14... Nd5 {[%clk 0:02:29.9]} 15. Bd6 {[%clk 0:02:25.9]}
15... Bxd6 {[%clk 0:02:15.2]} 16. Nxd6 {[%clk 0:02:26.8]} 16... Ne3 {[%clk
0:02:15.5]} 17. Qd3 {[%clk 0:02:26.9]} 17... Nxf1 {[%clk 0:02:14.5]} 18. Rxf1
{[%clk 0:02:26.9]} 18... Nf6 {[%clk 0:02:12.6]} 19. Nge4 {[%clk 0:02:20.5]}
19... Nxe4 {[%clk 0:02:08.1]} 20. Nxe4 {[%clk 0:02:21.4]} 20... e5 {[%clk
0:02:06.1]} 21. Bc2 {[%clk 0:02:11.8]} 21... Bf5 {[%clk 0:02:03.3]} 22. dxe5
{[%clk 0:02:09.4]} 22... Qxd3 {[%clk 0:02:02.2]} 23. Bxd3 {[%clk 0:02:10.3]}
23... Rfd8 {[%clk 0:01:58.9]} 24. Bc2 {[%clk 0:02:02]} 24... Bxe4 {[%clk
0:01:54.3]} 25. Bxe4 {[%clk 0:02:02.9]} 25... Rd2 {[%clk 0:01:53.2]} 26. Rf2
{[%clk 0:01:59.5]} 26... Rad8 {[%clk 0:01:49.4]} 27. b4 {[%clk 0:01:29.1]} 27...
Rxf2 {[%clk 0:01:45.5]} 28. Kxf2 {[%clk 0:01:30]} 28... Rd2+ {[%clk 0:01:45.3]}
29. Ke3 {[%clk 0:01:30.7]} 29... Rxg2 {[%clk 0:01:41.2]} 30. a4 {[%clk
0:01:29.9]} 30... Rxh2 {[%clk 0:01:39.4]} 31. b5 {[%clk 0:01:30]} 31... cxb5
{[%clk 0:01:32.7]} 32. axb5 {[%clk 0:01:30.9]} 32... b6 {[%clk 0:01:33.1]} 33.
Kd4 {[%clk 0:01:29.5]} 33... Rd2+ {[%clk 0:01:27.8]} 34. Ke3 {[%clk 0:01:26.7]}
34... Rd8 {[%clk 0:01:23.2]} 35. c4 {[%clk 0:01:26.7]} 35... Kf8 {[%clk
0:01:23.3]} 36. f4 {[%clk 0:01:25.4]} 36... Ke7 {[%clk 0:01:22.5]} 37. f5 {[%clk
0:01:22.2]} 37... f6 {[%clk 0:01:19.9]} 38. e6 {[%clk 0:01:15.9]} 38... g6
{[%clk 0:01:19.9]} 39. Bd5 {[%clk 0:01:11]} 39... gxf5 {[%clk 0:01:15.3]} 40.
Kf4 {[%clk 0:01:10.4]} 40... Rg8 {[%clk 0:01:15.8]} 41. Kxf5 {[%clk 0:01:09.8]}
41... Rg5+ {[%clk 0:01:16.2]} 42. Kf4 {[%clk 0:01:10.1]} 42... Re5 {[%clk
0:01:15]} 43. Kg4 {[%clk 0:01:07.8]} 43... Rxe6 {[%clk 0:01:15.4]} 44. Bxe6
{[%clk 0:01:08.4]} 44... Kxe6 {[%clk 0:01:15.8]} 0-1

[Event "Late-Titled-Tuesday-Blitz-June-25-2024"]
[Site "Chess.com"]
[Date "2024.06.25"]
[Round "7"]
[White "prxcess_brownie"]
[Black "DryCounty"]
[Result "0-1"]
[WhiteElo "2241"]
[BlackElo "2632"]
[TimeControl "180+1"]
[EndTime "15:14:35 PDT"]
[Termination "DryCounty won by resignation"]

1. c4 {[%clk 0:03:00.9]} 1... Nf6 {[%clk 0:02:59.2]} 2. Nc3 {[%clk 0:03:00.7]}
2... g6 {[%clk 0:02:59.4]} 3. e4 {[%clk 0:02:59.9]} 3... d6 {[%clk 0:02:59.8]}
4. d4 {[%clk 0:02:59.6]} 4... Bg7 {[%clk 0:03:00.3]} 5. Be2 {[%clk 0:02:59.7]}
5... O-O {[%clk 0:03:00.7]} 6. Nf3 {[%clk 0:02:59.8]} 6... e5 {[%clk 0:03:00.7]}
7. O-O {[%clk 0:02:59.3]} 7... Bg4 {[%clk 0:02:59.2]} 8. d5 {[%clk 0:02:57.6]}
8... a5 {[%clk 0:02:58.8]} 9. h3 {[%clk 0:02:55.9]} 9... Bxf3 {[%clk 0:02:58.1]}
10. Bxf3 {[%clk 0:02:56.8]} 10... Na6 {[%clk 0:02:58.1]} 11. Be3 {[%clk
0:02:52.8]} 11... Nc5 {[%clk 0:02:57.4]} 12. a3 {[%clk 0:02:49.5]} 12... a4
{[%clk 0:02:51.5]} 13. Bxc5 {[%clk 0:02:47.6]} 13... dxc5 {[%clk 0:02:52.4]} 14.
Nxa4 {[%clk 0:02:47.7]} 14... b6 {[%clk 0:02:51.7]} 15. Nc3 {[%clk 0:02:38.7]}
15... Ne8 {[%clk 0:02:51.1]} 16. Qc2 {[%clk 0:02:37.3]} 16... Nd6 {[%clk
0:02:50.4]} 17. Be2 {[%clk 0:02:33.1]} 17... f5 {[%clk 0:02:49.6]} 18. Bd3
{[%clk 0:02:29.3]} 18... Qg5 {[%clk 0:02:47.6]} 19. exf5 {[%clk 0:02:24.3]}
19... gxf5 {[%clk 0:02:46.9]} 20. b4 {[%clk 0:02:24.1]} 20... e4 {[%clk
0:02:45.7]} 21. Be2 {[%clk 0:02:19.8]} 21... cxb4 {[%clk 0:02:31.8]} 22. axb4
{[%clk 0:02:20.7]} 22... Rxa1 {[%clk 0:02:31.1]} 23. Rxa1 {[%clk 0:02:20.6]}
23... f4 {[%clk 0:02:31.7]} 24. Bf1 {[%clk 0:02:03.9]} 24... f3 {[%clk
0:02:27.7]} 25. g3 {[%clk 0:02:03.3]} 25... e3 {[%clk 0:02:25.1]} 26. Ra3 {[%clk
0:01:53.2]} 26... e2 {[%clk 0:02:15.7]} 27. Nxe2 {[%clk 0:01:49]} 27... fxe2
{[%clk 0:02:16.2]} 28. Bxe2 {[%clk 0:01:49.7]} 28... Bd4 {[%clk 0:02:12.1]} 29.
Rf3 {[%clk 0:01:42.3]} 29... Rxf3 {[%clk 0:02:10.2]} 30. Bxf3 {[%clk 0:01:43.2]}
30... Qxg3+ {[%clk 0:02:09.8]} 31. Bg2 {[%clk 0:01:42.8]} 31... Qe5 {[%clk
0:01:56.3]} 32. c5 {[%clk 0:01:38.2]} 32... bxc5 {[%clk 0:01:56.1]} 33. bxc5
{[%clk 0:01:39.1]} 33... Nf5 {[%clk 0:01:50.8]} 34. d6 {[%clk 0:01:38.4]} 34...
cxd6 {[%clk 0:01:36.7]} 35. c6 {[%clk 0:01:38]} 35... Qe1+ {[%clk 0:01:06.4]}
36. Bf1 {[%clk 0:01:31.3]} 36... Ng3 {[%clk 0:01:01.2]} 37. Qc4+ {[%clk
0:01:21.9]} 37... Kf8 {[%clk 0:01:00.1]} 38. Qxd4 {[%clk 0:01:20.7]} 38... Ne2+
{[%clk 0:00:59.7]} 39. Kg2 {[%clk 0:01:16]} 39... Nxd4 {[%clk 0:01:00.6]} 40. c7
{[%clk 0:01:12.7]} 40... Qc3 {[%clk 0:00:59.6]} 0-1

[Event "Late-Titled-Tuesday-Blitz-June-25-2024"]
[Site "Chess.com"]
[Date "2024.06.25"]
[Round "7"]
[White "Fandorine"]
[Black "FairChess_on_YouTube"]
[Result "1/2-1/2"]
[WhiteElo "2923"]
[BlackElo "3085"]
[TimeControl "180+1"]
[EndTime "15:14:38 PDT"]
[Termination "Game drawn by repetition"]

1. d4 {[%clk 0:03:00.9]} 1... f5 {[%clk 0:03:00.3]} 2. Bg5 {[%clk 0:02:59]} 2...
c6 {[%clk 0:02:59.6]} 3. Nd2 {[%clk 0:02:55.4]} 3... d5 {[%clk 0:02:57.3]} 4. e3
{[%clk 0:02:52]} 4... Nd7 {[%clk 0:02:53.2]} 5. Ngf3 {[%clk 0:02:48.8]} 5...
Ngf6 {[%clk 0:02:52.8]} 6. c4 {[%clk 0:02:49.2]} 6... e6 {[%clk 0:02:53]} 7. Bd3
{[%clk 0:02:45.1]} 7... h6 {[%clk 0:02:44.7]} 8. Bf4 {[%clk 0:02:40.5]} 8... g5
{[%clk 0:02:44.2]} 9. Bg3 {[%clk 0:02:40.4]} 9... Ne4 {[%clk 0:02:41.5]} 10. Ne5
{[%clk 0:02:33.4]} 10... Nxg3 {[%clk 0:02:38.4]} 11. hxg3 {[%clk 0:02:27.3]}
11... Nxe5 {[%clk 0:02:38.4]} 12. dxe5 {[%clk 0:02:28.2]} 12... Qe7 {[%clk
0:02:34.7]} 13. cxd5 {[%clk 0:02:24.1]} 13... exd5 {[%clk 0:02:34.4]} 14. f4
{[%clk 0:02:24.7]} 14... Be6 {[%clk 0:02:28.2]} 15. Qc2 {[%clk 0:02:13.9]} 15...
Qc5 {[%clk 0:02:17.1]} 16. Bxf5 {[%clk 0:01:51]} 16... Qxe3+ {[%clk 0:02:13.1]}
17. Kd1 {[%clk 0:01:51.4]} 17... Bxf5 {[%clk 0:01:43.1]} 18. Qxf5 {[%clk
0:01:50.5]} 18... Bb4 {[%clk 0:01:43.6]} 19. Nf3 {[%clk 0:01:33.6]} 19... g4
{[%clk 0:01:33.3]} 20. Qxg4 {[%clk 0:00:32.8]} 20... Qd3+ {[%clk 0:01:31.3]} 21.
Kc1 {[%clk 0:00:33.1]} 21... Qc4+ {[%clk 0:01:24.9]} 22. Kb1 {[%clk 0:00:32.9]}
22... Qe4+ {[%clk 0:01:24.2]} 23. Kc1 {[%clk 0:00:33.3]} 23... Qe3+ {[%clk
0:01:21]} 24. Kb1 {[%clk 0:00:23.1]} 24... Qd3+ {[%clk 0:01:21]} 25. Kc1 {[%clk
0:00:23.7]} 25... Qc4+ {[%clk 0:01:21.1]} 26. Kb1 {[%clk 0:00:23.8]} 26... Qe4+
{[%clk 0:01:20.6]} 27. Kc1 {[%clk 0:00:23.5]} 27... Qc4+ {[%clk 0:01:20.6]}
1/2-1/2